[Event "Early-Titled-Tuesday-Blitz-May-14-2024"]
[Site "Chess.com"]
[Date "2024.05.14"]
[Round "10"]
[White "DonkyDonkyDonkey"]
[Black "Jospem"]
[Result "0-1"]
[WhiteElo "2919"]
[BlackElo "3008"]
[TimeControl "180+1"]
[EndTime "10:00:21 PDT"]
[Termination "Jospem won by resignation"]

1. d4 {[%clk 0:03:00.9]} 1... Nf6 {[%clk 0:02:59.8]} 2. Nc3 {[%clk 0:03:00.7]}
2... d5 {[%clk 0:02:59.9]} 3. Bf4 {[%clk 0:03:01]} 3... c5 {[%clk 0:02:58.5]} 4.
e3 {[%clk 0:03:01.1]} 4... cxd4 {[%clk 0:02:58.8]} 5. exd4 {[%clk 0:03:01.9]}
5... Bg4 {[%clk 0:02:58.7]} 6. Nf3 {[%clk 0:03:02]} 6... Nc6 {[%clk 0:02:56.5]}
7. Be2 {[%clk 0:02:57.5]} 7... Bxf3 {[%clk 0:02:52]} 8. Bxf3 {[%clk 0:02:58.4]}
8... e6 {[%clk 0:02:52.5]} 9. O-O {[%clk 0:02:54.8]} 9... Bd6 {[%clk 0:02:52.8]}
10. Bxd6 {[%clk 0:02:41.4]} 10... Qxd6 {[%clk 0:02:53.7]} 11. Ne2 {[%clk
0:02:42]} 11... O-O {[%clk 0:02:52.8]} 12. c3 {[%clk 0:02:42.4]} 12... b5 {[%clk
0:02:53]} 13. Ng3 {[%clk 0:02:40.4]} 13... b4 {[%clk 0:02:51.4]} 14. Qd3 {[%clk
0:02:40.4]} 14... bxc3 {[%clk 0:02:50.7]} 15. bxc3 {[%clk 0:02:41.3]} 15... Rfc8
{[%clk 0:02:49.9]} 16. Rab1 {[%clk 0:02:38.2]} 16... Rab8 {[%clk 0:02:45.1]} 17.
Qa6 {[%clk 0:02:35.6]} 17... Qc7 {[%clk 0:02:40]} 18. Ne2 {[%clk 0:02:29.2]}
18... g6 {[%clk 0:02:39.8]} 19. g3 {[%clk 0:02:23.8]} 19... Na5 {[%clk
0:02:36.1]} 20. Kg2 {[%clk 0:02:10.9]} 20... Nc4 {[%clk 0:02:33.6]} 21. Rfd1
{[%clk 0:01:53.8]} 21... Kg7 {[%clk 0:02:01.8]} 22. Nf4 {[%clk 0:01:50.3]} 22...
Rb6 {[%clk 0:01:53.9]} 23. Rxb6 {[%clk 0:01:47.9]} 23... Nxb6 {[%clk 0:01:54.8]}
24. Rb1 {[%clk 0:01:37.2]} 24... Qd7 {[%clk 0:01:45.4]} 25. a4 {[%clk
0:01:28.9]} 25... Rc7 {[%clk 0:01:25.4]} 26. a5 {[%clk 0:01:26.6]} 26... Na4
{[%clk 0:01:24.8]} 27. Rb8 {[%clk 0:01:19.2]} 27... Nxc3 {[%clk 0:01:18.8]} 28.
Qd3 {[%clk 0:01:16.8]} 28... Qd6 {[%clk 0:00:51.7]} 29. a6 {[%clk 0:01:04.4]}
29... Nce4 {[%clk 0:00:33.4]} 30. Qb5 {[%clk 0:00:54.3]} 30... Rc2 {[%clk
0:00:23.4]} 31. Nd3 {[%clk 0:00:54]} 31... Qc6 {[%clk 0:00:10.7]} 32. Qxc6
{[%clk 0:00:36.7]} 32... Rxc6 {[%clk 0:00:10.3]} 33. Nb4 {[%clk 0:00:35.4]}
33... Rc4 {[%clk 0:00:10.7]} 34. Rb7 {[%clk 0:00:35.1]} 34... Nd6 {[%clk
0:00:11.2]} 35. Rb8 {[%clk 0:00:30.4]} 35... Rxd4 {[%clk 0:00:09.3]} 36. Nc6
{[%clk 0:00:29.6]} 36... Ra4 {[%clk 0:00:08.8]} 37. Be2 {[%clk 0:00:30.1]} 37...
Nc4 {[%clk 0:00:09.1]} 38. Rb7 {[%clk 0:00:25.8]} 38... Rxa6 {[%clk 0:00:05.2]}
39. Ne5 {[%clk 0:00:26.1]} 39... Nxe5 {[%clk 0:00:01.9]} 40. Bxa6 {[%clk
0:00:25.5]} 40... g5 {[%clk 0:00:02.3]} 41. Rxa7 {[%clk 0:00:25.3]} 41... g4
{[%clk 0:00:02.8]} 42. Be2 {[%clk 0:00:24.9]} 42... h5 {[%clk 0:00:03.3]} 43. h3
{[%clk 0:00:25.4]} 43... Kg6 {[%clk 0:00:03.1]} 44. hxg4 {[%clk 0:00:25.7]}
44... hxg4 {[%clk 0:00:04]} 45. Ra4 {[%clk 0:00:24]} 45... Ne4 {[%clk
0:00:04.5]} 46. Kf1 {[%clk 0:00:21.4]} 46... f5 {[%clk 0:00:03.6]} 47. Ra6
{[%clk 0:00:20.6]} 47... Kf6 {[%clk 0:00:04.3]} 48. Rb6 {[%clk 0:00:20.4]} 48...
Nd2+ {[%clk 0:00:02]} 49. Ke1 {[%clk 0:00:20.1]} 49... Ne4 {[%clk 0:00:02.9]}
50. Kf1 {[%clk 0:00:20.4]} 50... d4 {[%clk 0:00:03.3]} 51. Rb8 {[%clk
0:00:18.7]} 51... d3 {[%clk 0:00:03.5]} 52. Bd1 {[%clk 0:00:19.3]} 52... Nc3
{[%clk 0:00:03.6]} 53. Bb3 {[%clk 0:00:19]} 53... Nf3 {[%clk 0:00:02.7]} 54. Rd8
{[%clk 0:00:19]} 54... d2 {[%clk 0:00:02.9]} 55. Rd3 {[%clk 0:00:19.4]} 55...
Ne4 {[%clk 0:00:02.2]} 56. Bd1 {[%clk 0:00:19.6]} 56... Ne5 {[%clk 0:00:02]} 57.
Rd8 {[%clk 0:00:20.1]} 57... Nc6 {[%clk 0:00:02.3]} 58. Rd3 {[%clk 0:00:19.7]}
58... Nb4 {[%clk 0:00:02.3]} 59. Rd8 {[%clk 0:00:19.7]} 59... Na2 {[%clk
0:00:02.9]} 60. Bc2 {[%clk 0:00:19.6]} 60... Nac3 {[%clk 0:00:03.7]} 61. Bxe4
{[%clk 0:00:19.2]} 61... d1=Q+ {[%clk 0:00:03.9]} 62. Rxd1 {[%clk 0:00:18.7]}
62... Nxd1 {[%clk 0:00:04.8]} 63. Bb7 {[%clk 0:00:19]} 63... Nc3 {[%clk
0:00:05.2]} 64. Kg2 {[%clk 0:00:18.9]} 64... Nb5 {[%clk 0:00:04.4]} 65. f3
{[%clk 0:00:18.7]} 65... Nd6 {[%clk 0:00:04.3]} 66. Ba8 {[%clk 0:00:18.9]} 66...
gxf3+ {[%clk 0:00:04.7]} 67. Bxf3 {[%clk 0:00:19.2]} 67... Kg5 {[%clk
0:00:05.4]} 68. Kf2 {[%clk 0:00:18.8]} 68... e5 {[%clk 0:00:05.2]} 69. Bc6
{[%clk 0:00:19.1]} 69... Nc4 {[%clk 0:00:05.2]} 70. Bd7 {[%clk 0:00:18.4]} 70...
Nb6 {[%clk 0:00:05.3]} 71. Be6 {[%clk 0:00:18.3]} 71... Na4 {[%clk 0:00:05.9]}
72. Kf3 {[%clk 0:00:17.9]} 72... Nc5 {[%clk 0:00:06.5]} 73. Bc4 {[%clk
0:00:17.2]} 73... Nd7 {[%clk 0:00:06.4]} 74. Be6 {[%clk 0:00:16.9]} 74... Nf6
{[%clk 0:00:07.1]} 75. Bc4 {[%clk 0:00:16.4]} 75... Ne4 {[%clk 0:00:03.5]} 76.
Ba6 {[%clk 0:00:14.7]} 76... Kf6 {[%clk 0:00:03.6]} 77. Bb5 {[%clk 0:00:13.6]}
77... Ng5+ {[%clk 0:00:03.4]} 78. Ke3 {[%clk 0:00:13.7]} 78... Nf7 {[%clk
0:00:04.3]} 79. Bc6 {[%clk 0:00:13.7]} 79... Ng5 {[%clk 0:00:03.3]} 80. Bd5
{[%clk 0:00:13.9]} 80... Nh7 {[%clk 0:00:01.8]} 81. Bb7 {[%clk 0:00:12.3]} 81...
Kg5 {[%clk 0:00:02]} 82. Kf3 {[%clk 0:00:11.9]} 82... Nf6 {[%clk 0:00:02.6]} 83.
Ba6 {[%clk 0:00:10.8]} 83... e4+ {[%clk 0:00:03.2]} 84. Kf2 {[%clk 0:00:11.2]}
84... Ng4+ {[%clk 0:00:03.2]} 85. Ke2 {[%clk 0:00:11.3]} 85... Nh6 {[%clk
0:00:03.6]} 86. Kf2 {[%clk 0:00:10.9]} 86... Ng4+ {[%clk 0:00:03.6]} 87. Ke2
{[%clk 0:00:11.3]} 87... Ne5 {[%clk 0:00:04.5]} 88. Kf2 {[%clk 0:00:11.8]} 88...
Kg4 {[%clk 0:00:03.7]} 89. Be2+ {[%clk 0:00:11.6]} 89... Kh3 {[%clk 0:00:04.2]}
90. Bf1+ {[%clk 0:00:11.2]} 90... Kh2 {[%clk 0:00:04.3]} 91. Ba6 {[%clk
0:00:05.8]} 91... Ng4+ {[%clk 0:00:04.6]} 92. Ke2 {[%clk 0:00:06.1]} 92... Kxg3
{[%clk 0:00:05.4]} 93. Bc8 {[%clk 0:00:06.6]} 93... Kf4 {[%clk 0:00:06.2]} 94.
Bb7 {[%clk 0:00:07]} 94... Ke5 {[%clk 0:00:06.8]} 95. Ba8 {[%clk 0:00:07.6]}
95... Nf6 {[%clk 0:00:07.4]} 96. Kf2 {[%clk 0:00:08]} 96... Nd5 {[%clk 0:00:08]}
97. Ke2 {[%clk 0:00:08.4]} 97... f4 {[%clk 0:00:08.6]} 98. Kf2 {[%clk
0:00:08.9]} 98... f3 {[%clk 0:00:08.6]} 99. Bb7 {[%clk 0:00:08.6]} 99... Ne7
{[%clk 0:00:06.2]} 100. Ke3 {[%clk 0:00:08.9]} 100... Nf5+ {[%clk 0:00:06.8]}
101. Kf2 {[%clk 0:00:09.6]} 101... Kf4 {[%clk 0:00:07.5]} 102. Ke1 {[%clk
0:00:10]} 102... e3 {[%clk 0:00:08.1]} 103. Bc6 {[%clk 0:00:10.7]} 103... Ng3
{[%clk 0:00:08.4]} 104. Bb5 {[%clk 0:00:09.9]} 104... f2+ {[%clk 0:00:08.7]}
105. Kd1 {[%clk 0:00:10.7]} 105... Kf3 {[%clk 0:00:08.3]} 106. Bc6+ {[%clk
0:00:08.5]} 106... Kf4 {[%clk 0:00:08.7]} 107. Bb5 {[%clk 0:00:09.4]} 107...
f1=Q+ {[%clk 0:00:09.1]} 108. Bxf1 {[%clk 0:00:08.7]} 108... Nxf1 {[%clk
0:00:10]} 109. Ke2 {[%clk 0:00:09.4]} 109... Ng3+ {[%clk 0:00:10.7]} 110. Ke1
{[%clk 0:00:10.3]} 110... Nf5 {[%clk 0:00:11.4]} 0-1

[Event "Early-Titled-Tuesday-Blitz-May-14-2024"]
[Site "Chess.com"]
[Date "2024.05.14"]
[Round "11"]
[White "LileKoridze"]
[Black "nitpicker"]
[Result "1/2-1/2"]
[WhiteElo "2395"]
[BlackElo "2286"]
[TimeControl "180+1"]
[EndTime "10:02:33 PDT"]
[Termination "Game drawn by repetition"]

1. d4 {[%clk 0:03:00.9]} 1... Nf6 {[%clk 0:02:58.3]} 2. c4 {[%clk 0:03:00.7]}
2... e6 {[%clk 0:02:58.1]} 3. Nf3 {[%clk 0:03:00.4]} 3... d5 {[%clk 0:02:55.1]}
4. g3 {[%clk 0:03:00.6]} 4... Bb4+ {[%clk 0:02:50.6]} 5. Bd2 {[%clk 0:03:00.3]}
5... Be7 {[%clk 0:02:51.2]} 6. Bg2 {[%clk 0:03:00.3]} 6... c6 {[%clk 0:02:51.9]}
7. O-O {[%clk 0:03:00]} 7... O-O {[%clk 0:02:51.9]} 8. b3 {[%clk 0:02:58.4]}
8... b6 {[%clk 0:02:51.1]} 9. Nc3 {[%clk 0:02:58]} 9... Ba6 {[%clk 0:02:44.9]}
10. cxd5 {[%clk 0:02:56.5]} 10... cxd5 {[%clk 0:02:45]} 11. Rc1 {[%clk
0:02:55.9]} 11... Bb7 {[%clk 0:02:38.5]} 12. Bf4 {[%clk 0:02:52.7]} 12... Nc6
{[%clk 0:02:37.8]} 13. Qd2 {[%clk 0:02:52.3]} 13... a6 {[%clk 0:02:34.1]} 14.
Rfd1 {[%clk 0:02:50.9]} 14... Ba3 {[%clk 0:02:27.7]} 15. Ra1 {[%clk 0:02:47.9]}
15... Rc8 {[%clk 0:02:25]} 16. Ne5 {[%clk 0:02:46.7]} 16... Bb4 {[%clk 0:02:20]}
17. Rac1 {[%clk 0:02:38.2]} 17... Ba3 {[%clk 0:02:17.4]} 18. Ra1 {[%clk
0:02:38]} 18... Bb4 {[%clk 0:02:17.5]} 19. Rac1 {[%clk 0:02:38.4]} 19... Ba3
{[%clk 0:02:17.9]} 20. Ra1 {[%clk 0:02:38.6]} 1/2-1/2

[Event "Early-Titled-Tuesday-Blitz-May-14-2024"]
[Site "Chess.com"]
[Date "2024.05.14"]
[Round "11"]
[White "klercaku"]
[Black "HanSchut"]
[Result "1-0"]
[WhiteElo "2265"]
[BlackElo "2359"]
[TimeControl "180+1"]
[EndTime "10:03:44 PDT"]
[Termination "klercaku won by resignation"]

1. e4 {[%clk 0:03:00.9]} 1... c5 {[%clk 0:02:58.9]} 2. Nf3 {[%clk 0:03:00.4]}
2... d6 {[%clk 0:02:59]} 3. d4 {[%clk 0:03:00.2]} 3... cxd4 {[%clk 0:02:59.9]}
4. Nxd4 {[%clk 0:03:00.8]} 4... Nf6 {[%clk 0:03:00.6]} 5. Nc3 {[%clk 0:03:01.4]}
5... a6 {[%clk 0:02:59.9]} 6. Be2 {[%clk 0:03:02]} 6... e5 {[%clk 0:02:59.8]} 7.
Nb3 {[%clk 0:03:01.5]} 7... Be7 {[%clk 0:03:00.4]} 8. Be3 {[%clk 0:03:01.9]}
8... Be6 {[%clk 0:03:01]} 9. O-O {[%clk 0:03:02.5]} 9... Nbd7 {[%clk 0:03:01.6]}
10. f4 {[%clk 0:03:02.1]} 10... exf4 {[%clk 0:03:01.4]} 11. Bxf4 {[%clk
0:03:03]} 11... Ne5 {[%clk 0:03:01.9]} 12. Nd4 {[%clk 0:02:58.6]} 12... O-O
{[%clk 0:03:00.7]} 13. Nxe6 {[%clk 0:02:56.7]} 13... fxe6 {[%clk 0:03:01.6]} 14.
Bxe5 {[%clk 0:02:57.1]} 14... dxe5 {[%clk 0:03:02.5]} 15. Qxd8 {[%clk
0:02:56.1]} 15... Rfxd8 {[%clk 0:02:58]} 16. Rad1 {[%clk 0:02:54.9]} 16... Bb4
{[%clk 0:02:51.1]} 17. Bd3 {[%clk 0:02:46.2]} 17... Bxc3 {[%clk 0:02:46.3]} 18.
bxc3 {[%clk 0:02:45.5]} 18... b5 {[%clk 0:02:43.5]} 19. c4 {[%clk 0:02:43.3]}
19... bxc4 {[%clk 0:02:35.6]} 20. Bxc4 {[%clk 0:02:44.2]} 20... Nxe4 {[%clk
0:02:27]} 21. Bxe6+ {[%clk 0:02:41.7]} 21... Kh8 {[%clk 0:02:27.9]} 22. Rde1
{[%clk 0:02:12.3]} 22... Rd4 {[%clk 0:02:02.9]} 23. Rxe4 {[%clk 0:02:02.7]}
23... Rxe4 {[%clk 0:02:00.5]} 24. Bd5 {[%clk 0:02:02.6]} 1-0

[Event "Early-Titled-Tuesday-Blitz-May-14-2024"]
[Site "Chess.com"]
[Date "2024.05.14"]
[Round "11"]
[White "super_emi_26"]
[Black "Skatchkov_V"]
[Result "1-0"]
[WhiteElo "2871"]
[BlackElo "2644"]
[TimeControl "180+1"]
[EndTime "10:03:48 PDT"]
[Termination "super_emi_26 won by resignation"]

1. b3 {[%clk 0:03:00.9]} 1... d5 {[%clk 0:02:59.7]} 2. Bb2 {[%clk 0:03:01.8]}
2... Bf5 {[%clk 0:03:00.3]} 3. e3 {[%clk 0:03:01.7]} 3... e6 {[%clk 0:03:01]} 4.
Nf3 {[%clk 0:03:02.3]} 4... c6 {[%clk 0:03:01.7]} 5. c4 {[%clk 0:03:02.8]} 5...
h6 {[%clk 0:03:02.4]} 6. d4 {[%clk 0:03:03.2]} 6... Nf6 {[%clk 0:03:02.2]} 7.
Nc3 {[%clk 0:03:03.6]} 7... Nbd7 {[%clk 0:03:02.7]} 8. Be2 {[%clk 0:03:03.7]}
8... Bd6 {[%clk 0:03:02.8]} 9. O-O {[%clk 0:03:04.4]} 9... O-O {[%clk
0:03:02.5]} 10. Re1 {[%clk 0:03:04.2]} 10... Re8 {[%clk 0:03:02.5]} 11. Bf1
{[%clk 0:03:04.6]} 11... a6 {[%clk 0:03:02.5]} 12. g3 {[%clk 0:03:05.1]} 12...
b5 {[%clk 0:03:02.9]} 13. Nd2 {[%clk 0:03:00.9]} 13... bxc4 {[%clk 0:02:56.8]}
14. bxc4 {[%clk 0:03:01.8]} 14... Rb8 {[%clk 0:02:57.4]} 15. Qc1 {[%clk
0:02:58.4]} 15... Qb6 {[%clk 0:02:55.6]} 16. Nb3 {[%clk 0:02:57.9]} 16... dxc4
{[%clk 0:02:22.6]} 17. Bxc4 {[%clk 0:02:58.8]} 17... c5 {[%clk 0:02:23.2]} 18.
Na4 {[%clk 0:02:58.3]} 18... Qb7 {[%clk 0:02:23.6]} 19. Naxc5 {[%clk 0:02:55.9]}
19... Bxc5 {[%clk 0:02:18]} 20. dxc5 {[%clk 0:02:56.8]} 20... Bh3 {[%clk
0:02:17.4]} 21. Bf1 {[%clk 0:02:55.2]} 21... Bxf1 {[%clk 0:02:13.5]} 22. Rxf1
{[%clk 0:02:50.8]} 22... Rec8 {[%clk 0:02:13]} 23. Qc3 {[%clk 0:02:33.6]} 23...
Nxc5 {[%clk 0:02:02.3]} 24. Nxc5 {[%clk 0:02:33.7]} 24... Qxb2 {[%clk
0:02:00.7]} 25. Qxb2 {[%clk 0:02:33.8]} 25... Rxb2 {[%clk 0:02:01.6]} 26. Nd3
{[%clk 0:02:29.4]} 26... Rcc2 {[%clk 0:01:55.4]} 27. Nxb2 {[%clk 0:02:29]} 27...
Rxb2 {[%clk 0:01:55.5]} 28. Rfb1 {[%clk 0:02:28.8]} 28... Rd2 {[%clk 0:01:54.9]}
29. Rb4 {[%clk 0:02:28.9]} 29... h5 {[%clk 0:01:51.8]} 30. Ra4 {[%clk 0:02:29]}
30... Ng4 {[%clk 0:01:51.7]} 31. Rf1 {[%clk 0:02:28.5]} 31... Ne5 {[%clk
0:01:50.6]} 32. Rxa6 {[%clk 0:02:28.1]} 1-0

[Event "Early-Titled-Tuesday-Blitz-May-14-2024"]
[Site "Chess.com"]
[Date "2024.05.14"]
[Round "11"]
[White "Slovineanu"]
[Black "jraosam"]
[Result "1-0"]
[WhiteElo "2479"]
[BlackElo "2093"]
[TimeControl "180+1"]
[EndTime "10:03:55 PDT"]
[Termination "Slovineanu won by resignation"]

1. d4 {[%clk 0:02:54.5]} 1... d5 {[%clk 0:02:53.1]} 2. Nf3 {[%clk 0:02:51.8]}
2... Nf6 {[%clk 0:02:52.5]} 3. c4 {[%clk 0:02:51.1]} 3... e6 {[%clk 0:02:50.6]}
4. e3 {[%clk 0:02:50.6]} 4... Be7 {[%clk 0:02:49.5]} 5. b3 {[%clk 0:02:49.7]}
5... O-O {[%clk 0:02:49.6]} 6. Bd3 {[%clk 0:02:49.5]} 6... dxc4 {[%clk 0:02:50]}
7. bxc4 {[%clk 0:02:49.3]} 7... c5 {[%clk 0:02:50.5]} 8. O-O {[%clk 0:02:48.7]}
8... Nc6 {[%clk 0:02:50.9]} 9. Bb2 {[%clk 0:02:48.5]} 9... b6 {[%clk 0:02:50.1]}
10. Nc3 {[%clk 0:02:46.7]} 10... Bb7 {[%clk 0:02:45.3]} 11. Qe2 {[%clk
0:02:34.7]} 11... cxd4 {[%clk 0:02:45.2]} 12. exd4 {[%clk 0:02:34.6]} 12... Rc8
{[%clk 0:02:45.2]} 13. Rad1 {[%clk 0:02:33.3]} 13... Qc7 {[%clk 0:02:41.9]} 14.
d5 {[%clk 0:02:22]} 14... exd5 {[%clk 0:02:38.6]} 15. Nxd5 {[%clk 0:02:21.7]}
15... Nxd5 {[%clk 0:02:38]} 16. cxd5 {[%clk 0:02:21.4]} 16... Nb4 {[%clk
0:02:38.2]} 17. Bb1 {[%clk 0:02:07.8]} 17... Bd6 {[%clk 0:02:26.9]} 18. Ng5
{[%clk 0:01:48.7]} 18... g6 {[%clk 0:02:20.9]} 19. Nxh7 {[%clk 0:01:48.1]} 19...
Bxh2+ {[%clk 0:02:17]} 20. Kh1 {[%clk 0:01:47.8]} 20... Qf4 {[%clk 0:02:16]} 21.
Nf6+ {[%clk 0:01:44.5]} 1-0

[Event "Early-Titled-Tuesday-Blitz-May-14-2024"]
[Site "Chess.com"]
[Date "2024.05.14"]
[Round "11"]
[White "Renatoforf"]
[Black "margarita_2703"]
[Result "0-1"]
[WhiteElo "1977"]
[BlackElo "2336"]
[TimeControl "180+1"]
[EndTime "10:04:07 PDT"]
[Termination "margarita_2703 won by resignation"]

1. e4 {[%clk 0:03:00.9]} 1... a5 {[%clk 0:03:00.9]} 2. d4 {[%clk 0:02:59.4]}
2... Ra6 {[%clk 0:02:55.3]} 3. Bxa6 {[%clk 0:02:57.5]} 3... Nxa6 {[%clk
0:02:56.2]} 4. Nf3 {[%clk 0:02:56.3]} 4... b6 {[%clk 0:02:56.3]} 5. O-O {[%clk
0:02:56.6]} 5... Bb7 {[%clk 0:02:57.2]} 6. Nc3 {[%clk 0:02:55.9]} 6... Qa8
{[%clk 0:02:58.1]} 7. Re1 {[%clk 0:02:53.5]} 7... e6 {[%clk 0:02:58.1]} 8. d5
{[%clk 0:02:51.9]} 8... Nf6 {[%clk 0:02:57.4]} 9. Bg5 {[%clk 0:02:47.9]} 9...
Be7 {[%clk 0:02:54.7]} 10. dxe6 {[%clk 0:02:42.2]} 10... fxe6 {[%clk 0:02:50.6]}
11. e5 {[%clk 0:02:36.6]} 11... Ng8 {[%clk 0:02:49.5]} 12. Bxe7 {[%clk 0:02:33]}
12... Nxe7 {[%clk 0:02:50.4]} 13. Qd3 {[%clk 0:02:30.8]} 13... Nc5 {[%clk
0:02:49.6]} 14. Qe2 {[%clk 0:02:27.5]} 14... O-O {[%clk 0:02:49.4]} 15. Rad1
{[%clk 0:02:25.6]} 15... Rxf3 {[%clk 0:02:46.8]} 16. gxf3 {[%clk 0:02:23.7]}
16... Bxf3 {[%clk 0:02:47.7]} 17. Qe3 {[%clk 0:02:23.3]} 17... Nf5 {[%clk
0:02:45.8]} 18. Qf4 {[%clk 0:02:21.8]} 18... Bh1 {[%clk 0:02:43.6]} 19. Ne4
{[%clk 0:02:10]} 19... Bxe4 {[%clk 0:02:42]} 20. Rxe4 {[%clk 0:02:07.7]} 20...
Nxe4 {[%clk 0:02:35.9]} 21. Rxd7 {[%clk 0:02:03.4]} 21... Nc5 {[%clk 0:02:30]}
22. Rxc7 {[%clk 0:02:01.4]} 22... Qd5 {[%clk 0:02:29.8]} 23. Qg5 {[%clk
0:01:49.3]} 23... h6 {[%clk 0:02:17.6]} 24. Qd8+ {[%clk 0:01:47.3]} 24... Qxd8
{[%clk 0:02:11]} 25. Rxg7+ {[%clk 0:01:45.2]} 25... Nxg7 {[%clk 0:02:11.9]} 0-1

[Event "Early-Titled-Tuesday-Blitz-May-14-2024"]
[Site "Chess.com"]
[Date "2024.05.14"]
[Round "11"]
[White "ChadBiryani"]
[Black "Byniolus"]
[Result "1-0"]
[WhiteElo "2560"]
[BlackElo "2774"]
[TimeControl "180+1"]
[EndTime "10:04:11 PDT"]
[Termination "ChadBiryani won by resignation"]

1. c4 {[%clk 0:02:59.8]} 1... d6 {[%clk 0:03:00.9]} 2. g3 {[%clk 0:02:58.9]}
2... a6 {[%clk 0:03:01.8]} 3. Bg2 {[%clk 0:02:59.3]} 3... g6 {[%clk 0:03:02.7]}
4. d4 {[%clk 0:02:54.9]} 4... c6 {[%clk 0:03:03.6]} 5. Nc3 {[%clk 0:02:52.9]}
5... e6 {[%clk 0:03:04.5]} 6. Nf3 {[%clk 0:02:47.3]} 6... f6 {[%clk 0:03:05.4]}
7. O-O {[%clk 0:02:47.2]} 7... b6 {[%clk 0:03:05.1]} 8. e4 {[%clk 0:02:44.9]}
8... h6 {[%clk 0:03:05.7]} 9. Nh4 {[%clk 0:02:32.6]} 9... Ne7 {[%clk 0:03:05.2]}
10. f4 {[%clk 0:02:28.7]} 10... h5 {[%clk 0:02:58.2]} 11. e5 {[%clk 0:02:13.6]}
11... dxe5 {[%clk 0:02:54]} 12. fxe5 {[%clk 0:02:13.5]} 12... fxe5 {[%clk
0:02:48.5]} 13. Qf3 {[%clk 0:02:11.4]} 13... Nf5 {[%clk 0:02:40.2]} 14. Nxg6
{[%clk 0:02:10.7]} 14... Qxd4+ {[%clk 0:02:39.9]} 15. Kh1 {[%clk 0:02:09.7]}
15... Rh7 {[%clk 0:02:36.5]} 16. Ne4 {[%clk 0:01:57.8]} 16... Nd7 {[%clk
0:02:15.9]} 17. Bg5 {[%clk 0:01:45.8]} 17... Rf7 {[%clk 0:02:01.7]} 18. Rad1
{[%clk 0:01:40.2]} 18... Qxc4 {[%clk 0:02:01.7]} 19. Nxe5 {[%clk 0:01:34.6]}
19... Qxa2 {[%clk 0:01:56.4]} 20. Nxf7 {[%clk 0:01:27.2]} 20... Kxf7 {[%clk
0:01:55.8]} 21. Qxh5+ {[%clk 0:01:27.1]} 1-0

[Event "Early-Titled-Tuesday-Blitz-May-14-2024"]
[Site "Chess.com"]
[Date "2024.05.14"]
[Round "11"]
[White "DonkyDonkyDonkey"]
[Black "Polish_fighter3000"]
[Result "0-1"]
[WhiteElo "2915"]
[BlackElo "3103"]
[TimeControl "180+1"]
[EndTime "10:04:16 PDT"]
[Termination "Polish_fighter3000 won by checkmate"]

1. e4 {[%clk 0:03:00.9]} 1... c6 {[%clk 0:02:58.1]} 2. Nc3 {[%clk 0:03:00.5]}
2... d5 {[%clk 0:02:59]} 3. Nf3 {[%clk 0:03:01]} 3... dxe4 {[%clk 0:02:58.9]} 4.
Nxe4 {[%clk 0:03:01.9]} 4... Bf5 {[%clk 0:02:57.8]} 5. Ng3 {[%clk 0:03:02]} 5...
Bg4 {[%clk 0:02:58.1]} 6. Bc4 {[%clk 0:02:52.8]} 6... e6 {[%clk 0:02:58]} 7. O-O
{[%clk 0:02:52.5]} 7... Nd7 {[%clk 0:02:57.2]} 8. d4 {[%clk 0:02:51.2]} 8...
Ngf6 {[%clk 0:02:45.3]} 9. h3 {[%clk 0:02:50.2]} 9... Bxf3 {[%clk 0:02:45.6]}
10. Qxf3 {[%clk 0:02:51.1]} 10... Nb6 {[%clk 0:02:46.1]} 11. Qd3 {[%clk
0:02:43.3]} 11... Nxc4 {[%clk 0:02:44.9]} 12. Qxc4 {[%clk 0:02:44.2]} 12... Qd5
{[%clk 0:02:45.1]} 13. Qd3 {[%clk 0:02:44.1]} 13... O-O-O {[%clk 0:02:39.1]} 14.
Be3 {[%clk 0:02:43.3]} 14... Bd6 {[%clk 0:02:37.9]} 15. c4 {[%clk 0:02:40.1]}
15... Qa5 {[%clk 0:02:38.4]} 16. Ne4 {[%clk 0:02:35.8]} 16... Bc7 {[%clk
0:02:31]} 17. Nxf6 {[%clk 0:02:26.2]} 17... gxf6 {[%clk 0:02:31.9]} 18. b4
{[%clk 0:02:25]} 18... Qh5 {[%clk 0:02:26.4]} 19. Kh1 {[%clk 0:02:19.3]} 19...
Rhg8 {[%clk 0:02:25.8]} 20. Qd1 {[%clk 0:02:11.5]} 20... Qh4 {[%clk 0:02:21.2]}
21. Qf3 {[%clk 0:02:11.3]} 21... f5 {[%clk 0:02:21.7]} 22. Rad1 {[%clk
0:02:09.1]} 22... Rg4 {[%clk 0:02:00.2]} 23. d5 {[%clk 0:02:04.3]} 23... Rxc4
{[%clk 0:01:59.3]} 24. dxc6 {[%clk 0:02:02.5]} 24... Rxc6 {[%clk 0:01:48.1]} 25.
b5 {[%clk 0:01:58.5]} 25... Rc3 {[%clk 0:01:35.8]} 26. Rc1 {[%clk 0:01:58.6]}
26... Qc4 {[%clk 0:01:35.3]} 27. Rxc3 {[%clk 0:01:57.3]} 27... Qxf1# {[%clk
0:01:35.1]} 0-1

[Event "Early-Titled-Tuesday-Blitz-May-14-2024"]
[Site "Chess.com"]
[Date "2024.05.14"]
[Round "11"]
[White "Szachulec75"]
[Black "DarZay"]
[Result "0-1"]
[WhiteElo "2134"]
[BlackElo "2307"]
[TimeControl "180+1"]
[EndTime "10:04:27 PDT"]
[Termination "DarZay won by resignation"]

1. Nf3 {[%clk 0:03:00.9]} 1... Nf6 {[%clk 0:02:59.1]} 2. g3 {[%clk 0:03:00.5]}
2... d5 {[%clk 0:02:58.6]} 3. Bg2 {[%clk 0:02:58.7]} 3... c5 {[%clk 0:02:58.2]}
4. d3 {[%clk 0:02:59.6]} 4... Nc6 {[%clk 0:02:58]} 5. O-O {[%clk 0:03:00.1]}
5... e5 {[%clk 0:02:57.9]} 6. Bg5 {[%clk 0:02:58.4]} 6... Be7 {[%clk 0:02:57.6]}
7. Nfd2 {[%clk 0:02:56.6]} 7... O-O {[%clk 0:02:56.6]} 8. Nc3 {[%clk 0:02:54.8]}
8... d4 {[%clk 0:02:53.4]} 9. Bxf6 {[%clk 0:02:52.9]} 9... Bxf6 {[%clk
0:02:52.7]} 10. Nd5 {[%clk 0:02:51.9]} 10... Be6 {[%clk 0:02:51.3]} 11. c4
{[%clk 0:02:51.8]} 11... Bxd5 {[%clk 0:02:48.7]} 12. cxd5 {[%clk 0:02:50.3]}
12... Ne7 {[%clk 0:02:47.7]} 13. Qb3 {[%clk 0:02:50.3]} 13... Rb8 {[%clk
0:02:46.5]} 14. a4 {[%clk 0:02:48]} 14... b6 {[%clk 0:02:44.2]} 15. Ne4 {[%clk
0:02:33.8]} 15... Nxd5 {[%clk 0:02:36.8]} 16. Qxd5 {[%clk 0:02:19.1]} 16... Qxd5
{[%clk 0:02:31.6]} 17. Nxf6+ {[%clk 0:02:19]} 17... gxf6 {[%clk 0:02:31.3]} 18.
Bxd5 {[%clk 0:02:19.4]} 18... Kg7 {[%clk 0:02:30.6]} 19. f4 {[%clk 0:02:16.9]}
19... exf4 {[%clk 0:02:29]} 20. Rxf4 {[%clk 0:02:14.2]} 20... Rfe8 {[%clk
0:02:29.1]} 21. Be4 {[%clk 0:02:10.2]} 21... Re5 {[%clk 0:02:27.8]} 22. Raf1
{[%clk 0:02:09.2]} 22... Re6 {[%clk 0:02:18.1]} 23. Bd5 {[%clk 0:02:08.4]} 23...
Rd6 {[%clk 0:02:18]} 24. Bc4 {[%clk 0:02:08.7]} 24... Re8 {[%clk 0:02:17.7]} 25.
R1f2 {[%clk 0:02:07.6]} 25... Re5 {[%clk 0:02:15.4]} 26. h3 {[%clk 0:02:05.9]}
26... h5 {[%clk 0:02:14.7]} 27. Kg2 {[%clk 0:02:05.4]} 27... Kg6 {[%clk
0:02:13.6]} 28. g4 {[%clk 0:01:53.3]} 28... hxg4 {[%clk 0:02:12.3]} 29. Rxg4+
{[%clk 0:01:53.7]} 29... Kh5 {[%clk 0:02:09.9]} 30. Bxf7+ {[%clk 0:01:46.2]}
30... Kh6 {[%clk 0:02:09.5]} 31. Rg6+ {[%clk 0:01:42.8]} 31... Kh7 {[%clk
0:02:09.4]} 32. Bg8+ {[%clk 0:01:29.8]} 32... Kxg6 {[%clk 0:02:08.4]} 0-1